[Event "*** SCC Grand Prix: Titled Tuesday Blitz"]
[Site "Chess.com"]
[Date "2020.09.08"]
[Round "1"]
[White "Thjop"]
[Black "c_r_e_e_p_e_r"]
[Result "1-0"]
[WhiteElo "2649"]
[BlackElo "2319"]
[TimeControl "180+1"]
[EndTime "10:09:28 PDT"]
[Termination "Thjop won by checkmate"]

1. d4 {[%clk 0:03:00.9]} 1... Nf6 {[%clk 0:02:56.9]} 2. Nf3 {[%clk 0:03:00.4]}
2... g6 {[%clk 0:02:57]} 3. g3 {[%clk 0:02:59.2]} 3... Bg7 {[%clk 0:02:57.3]} 4.
Bg2 {[%clk 0:02:59.2]} 4... O-O {[%clk 0:02:57.7]} 5. O-O {[%clk 0:02:57.5]}
5... d6 {[%clk 0:02:57.8]} 6. c4 {[%clk 0:02:54.3]} 6... Nc6 {[%clk 0:02:57.8]}
7. Nc3 {[%clk 0:02:54.1]} 7... Bd7 {[%clk 0:02:58]} 8. Bf4 {[%clk 0:02:53.6]}
8... a6 {[%clk 0:02:58.3]} 9. Rc1 {[%clk 0:02:50.5]} 9... Rb8 {[%clk 0:02:58.5]}
10. Nd5 {[%clk 0:02:28.8]} 10... Nxd5 {[%clk 0:02:51.3]} 11. cxd5 {[%clk
0:02:29.7]} 11... Nb4 {[%clk 0:02:51.9]} 12. Qb3 {[%clk 0:02:27.6]} 12... a5
{[%clk 0:02:44.4]} 13. a3 {[%clk 0:02:24.2]} 13... Na6 {[%clk 0:02:42.8]} 14. e4
{[%clk 0:02:18.7]} 14... c5 {[%clk 0:02:38.4]} 15. dxc6 {[%clk 0:02:04]} 15...
bxc6 {[%clk 0:02:37.4]} 16. Qd3 {[%clk 0:01:55.2]} 16... Qb6 {[%clk 0:02:34.7]}
17. Rc2 {[%clk 0:01:53.4]} 17... c5 {[%clk 0:02:30.9]} 18. e5 {[%clk 0:01:41.6]}
18... Bf5 {[%clk 0:02:24.9]} 19. Qd2 {[%clk 0:01:36.7]} 19... Bxc2 {[%clk
0:02:24.1]} 20. Qxc2 {[%clk 0:01:37.3]} 20... cxd4 {[%clk 0:02:17.8]} 21. exd6
{[%clk 0:01:32.2]} 21... exd6 {[%clk 0:02:13.8]} 22. Rd1 {[%clk 0:01:27.8]}
22... Qxb2 {[%clk 0:01:47.6]} 23. Qc4 {[%clk 0:00:50.3]} 23... Qb3 {[%clk
0:01:39.7]} 24. Qf1 {[%clk 0:00:42.9]} 24... Qb6 {[%clk 0:01:23.5]} 25. Ng5
{[%clk 0:00:37.7]} 25... Be5 {[%clk 0:01:18.7]} 26. Bd2 {[%clk 0:00:33.1]} 26...
Nc5 {[%clk 0:01:14.4]} 27. Bd5 {[%clk 0:00:31.3]} 27... h6 {[%clk 0:01:10.2]}
28. Nf3 {[%clk 0:00:24.3]} 28... Bg7 {[%clk 0:01:09.9]} 29. h4 {[%clk 0:00:21]}
29... Na4 {[%clk 0:00:54.5]} 30. h5 {[%clk 0:00:21.3]} 30... g5 {[%clk 0:00:49]}
31. Be4 {[%clk 0:00:19.4]} 31... Nc3 {[%clk 0:00:43.7]} 32. Bxc3 {[%clk
0:00:19.4]} 32... dxc3 {[%clk 0:00:43.7]} 33. Bc2 {[%clk 0:00:20.3]} 33... f5
{[%clk 0:00:37]} 34. Qd3 {[%clk 0:00:18.9]} 34... Qc5 {[%clk 0:00:26.5]} 35. Kg2
{[%clk 0:00:18.6]} 35... Rbd8 {[%clk 0:00:24.7]} 36. a4 {[%clk 0:00:16.7]} 36...
Kh8 {[%clk 0:00:24.3]} 37. Bb3 {[%clk 0:00:16.1]} 37... d5 {[%clk 0:00:23.9]}
38. Bc2 {[%clk 0:00:11.4]} 38... d4 {[%clk 0:00:24.2]} 39. Bb3 {[%clk
0:00:10.7]} 39... Rd6 {[%clk 0:00:21.7]} 40. Bc2 {[%clk 0:00:10.9]} 40... Rd5
{[%clk 0:00:19.7]} 41. Re1 {[%clk 0:00:11.2]} 41... Rdd8 {[%clk 0:00:17.9]} 42.
Re6 {[%clk 0:00:11.1]} 42... Qd5 {[%clk 0:00:17.2]} 43. Rg6 {[%clk 0:00:10.7]}
43... Qe4 {[%clk 0:00:16.7]} 44. Kf1 {[%clk 0:00:06.9]} 44... Qxd3+ {[%clk
0:00:15.8]} 45. Bxd3 {[%clk 0:00:07.8]} 45... Rf6 {[%clk 0:00:14.5]} 46. Rxf6
{[%clk 0:00:06.7]} 46... Bxf6 {[%clk 0:00:15.4]} 47. Ke2 {[%clk 0:00:07.1]}
47... Kg7 {[%clk 0:00:14.1]} 48. Bxf5 {[%clk 0:00:07.1]} 48... Re8+ {[%clk
0:00:13]} 49. Kd1 {[%clk 0:00:06.9]} 49... Rd8 {[%clk 0:00:11.5]} 50. Bd3 {[%clk
0:00:07.1]} 50... Be7 {[%clk 0:00:10.4]} 51. Ne1 {[%clk 0:00:07]} 51... Bb4
{[%clk 0:00:10.5]} 52. Nf3 {[%clk 0:00:07.1]} 52... Kf6 {[%clk 0:00:10.4]} 53.
Kc2 {[%clk 0:00:07.1]} 53... Bc5 {[%clk 0:00:10.1]} 54. g4 {[%clk 0:00:07.4]}
54... Rb8 {[%clk 0:00:10.1]} 55. Kd1 {[%clk 0:00:06.6]} 55... Rb2 {[%clk
0:00:09.7]} 56. Bc2 {[%clk 0:00:07.1]} 56... Ra2 {[%clk 0:00:08.5]} 57. Ne1
{[%clk 0:00:07]} 57... Ra1+ {[%clk 0:00:08.6]} 58. Ke2 {[%clk 0:00:07.5]} 58...
Ra2 {[%clk 0:00:07.6]} 59. Kd1 {[%clk 0:00:07.6]} 59... Ke5 {[%clk 0:00:06.4]}
60. Nd3+ {[%clk 0:00:07.3]} 60... Kd6 {[%clk 0:00:06.9]} 61. Ne1 {[%clk
0:00:06]} 61... Ra1+ {[%clk 0:00:06.9]} 62. Ke2 {[%clk 0:00:06.4]} 62... Bb4
{[%clk 0:00:06.5]} 63. Nf3 {[%clk 0:00:06]} 63... Ra2 {[%clk 0:00:06.3]} 64. Kd3
{[%clk 0:00:06.1]} 64... Bc5 {[%clk 0:00:06.1]} 65. Ne1 {[%clk 0:00:05.8]} 65...
Ra1 {[%clk 0:00:05.8]} 66. Ke2 {[%clk 0:00:06.3]} 66... Rc1 {[%clk 0:00:05.5]}
67. Bb3 {[%clk 0:00:04.6]} 67... Bb4 {[%clk 0:00:04.4]} 68. Nd3 {[%clk
0:00:03.7]} 68... Rb1 {[%clk 0:00:04.1]} 69. Bc2 {[%clk 0:00:04]} 69... Ra1
{[%clk 0:00:03.9]} 70. Ne1 {[%clk 0:00:03.8]} 70... Ra2 {[%clk 0:00:03.5]} 71.
Kd3 {[%clk 0:00:04.3]} 71... Kc5 {[%clk 0:00:03.3]} 72. Nf3 {[%clk 0:00:04.4]}
72... Ba3 {[%clk 0:00:02.9]} 73. Ne5 {[%clk 0:00:04.3]} 73... Bb2 {[%clk
0:00:02.9]} 74. Nd7+ {[%clk 0:00:04.6]} 74... Kd6 {[%clk 0:00:02.8]} 75. Nf6
{[%clk 0:00:05.3]} 75... Ke5 {[%clk 0:00:02.7]} 76. Ne4 {[%clk 0:00:06.2]} 76...
Kf4 {[%clk 0:00:02.5]} 77. Nf6 {[%clk 0:00:06.4]} 77... Kf3 {[%clk 0:00:02.4]}
78. Bd1+ {[%clk 0:00:05.3]} 78... Kxf2 {[%clk 0:00:02.5]} 79. Ng8 {[%clk
0:00:05.2]} 79... Bc1 {[%clk 0:00:02.4]} 80. Bc2 {[%clk 0:00:05]} 80... Rb2
{[%clk 0:00:02.4]} 81. Nxh6 {[%clk 0:00:05]} 81... Kg3 {[%clk 0:00:02.9]} 82.
Nf7 {[%clk 0:00:03.3]} 82... Kxg4 {[%clk 0:00:03.2]} 83. h6 {[%clk 0:00:04.2]}
83... Rb8 {[%clk 0:00:03.2]} 84. h7 {[%clk 0:00:04.3]} 84... Rh8 {[%clk
0:00:03.8]} 85. Nxh8 {[%clk 0:00:04.2]} 85... Kf3 {[%clk 0:00:04.1]} 86. Nf7
{[%clk 0:00:04.4]} 86... g4 {[%clk 0:00:04.4]} 87. h8=Q {[%clk 0:00:04.7]} 87...
g3 {[%clk 0:00:05.3]} 88. Ne5+ {[%clk 0:00:04.9]} 88... Kf2 {[%clk 0:00:05.4]}
89. Qh3 {[%clk 0:00:03]} 89... g2 {[%clk 0:00:05]} 90. Ng4+ {[%clk 0:00:03.2]}
90... Kg1 {[%clk 0:00:05.1]} 91. Qg3 {[%clk 0:00:01.5]} 91... Kh1 {[%clk
0:00:05]} 92. Qh2# {[%clk 0:00:01.7]} 1-0

[Event "*** SCC Grand Prix: Titled Tuesday Blitz"]
[Site "Chess.com"]
[Date "2020.09.08"]
[Round "1"]
[White "novocane"]
[Black "davidkalashian"]
[Result "1-0"]
[WhiteElo "2303"]
[BlackElo "2594"]
[TimeControl "180+1"]
[EndTime "10:09:28 PDT"]
[Termination "novocane won by resignation"]

1. d4 {[%clk 0:02:47.4]} 1... Nf6 {[%clk 0:02:54.9]} 2. c4 {[%clk 0:02:47.6]}
2... e6 {[%clk 0:02:52.4]} 3. Nc3 {[%clk 0:02:47.6]} 3... Bb4 {[%clk 0:02:51.7]}
4. e3 {[%clk 0:02:47.7]} 4... c6 {[%clk 0:02:51.3]} 5. Ne2 {[%clk 0:02:45.5]}
5... d5 {[%clk 0:02:50.4]} 6. a3 {[%clk 0:02:45.2]} 6... Be7 {[%clk 0:02:49.4]}
7. Nf4 {[%clk 0:02:40.5]} 7... O-O {[%clk 0:02:48.2]} 8. cxd5 {[%clk 0:02:32.5]}
8... exd5 {[%clk 0:02:38.5]} 9. Bd3 {[%clk 0:02:31.5]} 9... Bd6 {[%clk
0:02:32.3]} 10. Qf3 {[%clk 0:02:23.7]} 10... Re8 {[%clk 0:01:58.6]} 11. h3
{[%clk 0:02:20.1]} 11... Nbd7 {[%clk 0:01:47.8]} 12. O-O {[%clk 0:02:16.1]}
12... Nf8 {[%clk 0:01:47]} 13. b3 {[%clk 0:01:58.2]} 13... Ng6 {[%clk
0:01:43.7]} 14. Nxg6 {[%clk 0:01:54.4]} 14... hxg6 {[%clk 0:01:34.9]} 15. Bb2
{[%clk 0:01:51.8]} 15... Nh7 {[%clk 0:01:23.1]} 16. Qd1 {[%clk 0:01:28.3]} 16...
Qh4 {[%clk 0:01:18.2]} 17. Qd2 {[%clk 0:01:11.2]} 17... Bf5 {[%clk 0:00:36.8]}
18. f4 {[%clk 0:00:53.1]} 18... Nf6 {[%clk 0:00:31.8]} 19. Rf3 {[%clk
0:00:36.2]} 19... Ne4 {[%clk 0:00:26.7]} 20. Bxe4 {[%clk 0:00:29.3]} 20... Bxe4
{[%clk 0:00:26.7]} 21. Nxe4 {[%clk 0:00:21.1]} 21... Rxe4 {[%clk 0:00:26.1]} 22.
Raf1 {[%clk 0:00:16.2]} 22... f5 {[%clk 0:00:23.8]} 23. Qe1 {[%clk 0:00:13.5]}
23... Qxe1 {[%clk 0:00:21.9]} 24. Rxe1 {[%clk 0:00:13.4]} 24... Rae8 {[%clk
0:00:19.8]} 25. Kf2 {[%clk 0:00:11.3]} 25... Kf7 {[%clk 0:00:20]} 26. Bc1 {[%clk
0:00:10.6]} 26... Kf6 {[%clk 0:00:17.5]} 27. g4 {[%clk 0:00:10.6]} 27... Rh8
{[%clk 0:00:13.2]} 28. g5+ {[%clk 0:00:08.3]} 28... Kf7 {[%clk 0:00:13]} 29. Rd1
{[%clk 0:00:06.2]} 29... Rhe8 {[%clk 0:00:12.2]} 30. Rd3 {[%clk 0:00:05.4]}
30... R8e7 {[%clk 0:00:11]} 31. b4 {[%clk 0:00:04.7]} 31... a6 {[%clk
0:00:09.3]} 32. Rb3 {[%clk 0:00:03.8]} 32... Re8 {[%clk 0:00:08.9]} 33. Kg2
{[%clk 0:00:04.2]} 33... R4e7 {[%clk 0:00:08.1]} 34. a4 {[%clk 0:00:04.1]} 34...
Rc8 {[%clk 0:00:06.8]} 35. Rf2 {[%clk 0:00:03.3]} 35... Ra8 {[%clk 0:00:05.8]}
36. Rc2 {[%clk 0:00:03.2]} 36... Rc7 {[%clk 0:00:05.4]} 37. Rcb2 {[%clk
0:00:01.7]} 37... Rac8 {[%clk 0:00:04.5]} 38. b5 {[%clk 0:00:02.1]} 38... axb5
{[%clk 0:00:04.4]} 39. axb5 {[%clk 0:00:01.8]} 39... cxb5 {[%clk 0:00:05.3]} 40.
Bd2 {[%clk 0:00:01.6]} 40... Rc2 {[%clk 0:00:05]} 41. Rxb5 {[%clk 0:00:01.5]}
41... Rxb2 {[%clk 0:00:05.3]} 42. Rxb2 {[%clk 0:00:02.3]} 42... Rc7 {[%clk
0:00:06.2]} 43. Kf3 {[%clk 0:00:02.1]} 43... Ke6 {[%clk 0:00:05.5]} 44. Bb4
{[%clk 0:00:02.5]} 44... Kd7 {[%clk 0:00:04.5]} 45. Bxd6 {[%clk 0:00:02.2]}
45... Kxd6 {[%clk 0:00:05.4]} 46. Rb6+ {[%clk 0:00:02.8]} 46... Kd7 {[%clk
0:00:04.7]} 47. Rxg6 {[%clk 0:00:03]} 47... Kc8 {[%clk 0:00:05.1]} 48. Rd6
{[%clk 0:00:02.4]} 48... b5 {[%clk 0:00:04]} 49. Rxd5 {[%clk 0:00:02.3]} 49...
Rb7 {[%clk 0:00:04.1]} 50. Rc5+ {[%clk 0:00:02.1]} 50... Kd7 {[%clk 0:00:03.6]}
51. Rc2 {[%clk 0:00:03]} 51... b4 {[%clk 0:00:03.6]} 52. Rb2 {[%clk 0:00:03.7]}
52... Kd6 {[%clk 0:00:04.5]} 53. e4 {[%clk 0:00:04.3]} 53... Rb5 {[%clk
0:00:04.1]} 54. exf5 {[%clk 0:00:03.3]} 54... Kd5 {[%clk 0:00:03.5]} 55. f6
{[%clk 0:00:03.5]} 55... gxf6 {[%clk 0:00:04.4]} 56. gxf6 {[%clk 0:00:04]} 56...
Ke6 {[%clk 0:00:04.9]} 57. Ke4 {[%clk 0:00:03.9]} 57... Kxf6 {[%clk 0:00:05.1]}
58. d5 {[%clk 0:00:04.8]} 58... b3 {[%clk 0:00:05.8]} 59. Kd4 {[%clk 0:00:04.4]}
59... Rb4+ {[%clk 0:00:05.5]} 60. Kc5 {[%clk 0:00:04.4]} 60... Rb8 {[%clk
0:00:06.4]} 61. d6 {[%clk 0:00:04.9]} 61... Kf5 {[%clk 0:00:06.2]} 62. d7 {[%clk
0:00:04.5]} 62... Ke6 {[%clk 0:00:01.5]} 63. Kc6 {[%clk 0:00:03.8]} 63... Ke7
{[%clk 0:00:02.4]} 64. Re2+ {[%clk 0:00:03.4]} 64... Kf7 {[%clk 0:00:02.2]} 65.
Rb2 {[%clk 0:00:02.9]} 65... Ke7 {[%clk 0:00:01.5]} 66. Kc7 {[%clk 0:00:03.2]}
66... Ra8 {[%clk 0:00:01.4]} 67. Re2+ {[%clk 0:00:03.3]} 67... Kf7 {[%clk
0:00:01.6]} 68. Rb2 {[%clk 0:00:03.9]} 68... Ra7+ {[%clk 0:00:01.8]} 69. Kc8
{[%clk 0:00:04.3]} 69... Ra8+ {[%clk 0:00:01.9]} 70. Kb7 {[%clk 0:00:04.2]}
70... Rd8 {[%clk 0:00:02]} 71. Kc7 {[%clk 0:00:04.6]} 71... Ke7 {[%clk
0:00:02.3]} 72. Re2+ {[%clk 0:00:04.3]} 72... Kf7 {[%clk 0:00:02.6]} 73. Kxd8
{[%clk 0:00:05.1]} 73... b2 {[%clk 0:00:02.4]} 74. Rxb2 {[%clk 0:00:05.7]} 1-0

[Event "*** SCC Grand Prix: Titled Tuesday Blitz"]
[Site "Chess.com"]
[Date "2020.09.08"]
[Round "1"]
[White "mitrabhaa"]
[Black "Kaua18"]
[Result "1/2-1/2"]
[WhiteElo "2617"]
[BlackElo "2314"]
[TimeControl "180+1"]
[EndTime "10:09:37 PDT"]
[Termination "Game drawn by repetition"]

1. Nf3 {[%clk 0:02:57.7]} 1... c5 {[%clk 0:02:32.8]} 2. g3 {[%clk 0:02:58]} 2...
Nc6 {[%clk 0:02:30.9]} 3. Bg2 {[%clk 0:02:58.4]} 3... g6 {[%clk 0:02:31.7]} 4.
O-O {[%clk 0:02:59.3]} 4... Bg7 {[%clk 0:02:31.4]} 5. c3 {[%clk 0:03:00.2]} 5...
e5 {[%clk 0:02:23.8]} 6. d4 {[%clk 0:03:01.1]} 6... cxd4 {[%clk 0:02:21.9]} 7.
cxd4 {[%clk 0:03:02]} 7... Nxd4 {[%clk 0:02:20.5]} 8. Nxd4 {[%clk 0:03:01.1]}
8... exd4 {[%clk 0:02:21.4]} 9. Nd2 {[%clk 0:03:01.9]} 9... Ne7 {[%clk
0:02:21.2]} 10. Nf3 {[%clk 0:03:00]} 10... Nc6 {[%clk 0:02:19.8]} 11. Rb1 {[%clk
0:02:52.8]} 11... O-O {[%clk 0:02:15.3]} 12. b3 {[%clk 0:02:52.9]} 12... Re8
{[%clk 0:02:13.4]} 13. Bb2 {[%clk 0:02:53.2]} 13... Qb6 {[%clk 0:02:10.8]} 14.
Qd2 {[%clk 0:02:53]} 14... d6 {[%clk 0:01:50.4]} 15. Rbd1 {[%clk 0:02:41]} 15...
Bg4 {[%clk 0:01:41.4]} 16. h3 {[%clk 0:02:39.6]} 16... Bxf3 {[%clk 0:01:34.8]}
17. Bxf3 {[%clk 0:02:40.5]} 17... Ne5 {[%clk 0:01:33.9]} 18. Bxd4 {[%clk
0:02:35.1]} 18... Nxf3+ {[%clk 0:01:30.1]} 19. exf3 {[%clk 0:02:36]} 19... Bxd4
{[%clk 0:01:21.2]} 20. Qxd4 {[%clk 0:02:34.8]} 20... Qxd4 {[%clk 0:01:14.5]} 21.
Rxd4 {[%clk 0:02:35.7]} 21... Re2 {[%clk 0:01:14.9]} 22. a4 {[%clk 0:02:33.3]}
22... Rb2 {[%clk 0:01:11.6]} 23. Rd3 {[%clk 0:02:30]} 23... Rc8 {[%clk
0:01:10.7]} 24. f4 {[%clk 0:02:23.8]} 24... Rcc2 {[%clk 0:01:07.3]} 25. Rf3
{[%clk 0:02:21.8]} 25... Rd2 {[%clk 0:00:59]} 26. Rc1 {[%clk 0:02:20.3]} 26...
Rdc2 {[%clk 0:00:53.9]} 27. Rxc2 {[%clk 0:02:09.4]} 27... Rxc2 {[%clk
0:00:54.8]} 28. Rd3 {[%clk 0:02:10.3]} 28... Rb2 {[%clk 0:00:54.4]} 29. Kg2
{[%clk 0:02:01.9]} 29... Kf8 {[%clk 0:00:54]} 30. Kf3 {[%clk 0:02:02.5]} 30...
Ke7 {[%clk 0:00:53.8]} 31. g4 {[%clk 0:02:02.9]} 31... Ke6 {[%clk 0:00:52.9]}
32. h4 {[%clk 0:02:02.7]} 32... f5 {[%clk 0:00:52.7]} 33. g5 {[%clk 0:02:00.8]}
33... Rb1 {[%clk 0:00:51.1]} 34. Re3+ {[%clk 0:02:00.5]} 34... Kd7 {[%clk
0:00:51.2]} 35. Ke2 {[%clk 0:02:01.1]} 35... Rh1 {[%clk 0:00:50.9]} 36. Kd3
{[%clk 0:02:00.6]} 36... Rxh4 {[%clk 0:00:50.4]} 37. Rf3 {[%clk 0:02:01.2]}
37... Rh1 {[%clk 0:00:49.9]} 38. Kd4 {[%clk 0:02:01.4]} 38... h5 {[%clk
0:00:48.8]} 39. gxh6 {[%clk 0:02:00.1]} 39... Rxh6 {[%clk 0:00:48.3]} 40. Rg3
{[%clk 0:02:01]} 40... Rh4 {[%clk 0:00:46.2]} 41. Ke3 {[%clk 0:01:58.2]} 41...
Rg4 {[%clk 0:00:46.4]} 42. Rh3 {[%clk 0:01:58.2]} 42... Rg1 {[%clk 0:00:44.7]}
43. Rh7+ {[%clk 0:01:57.8]} 43... Kc6 {[%clk 0:00:45.1]} 44. b4 {[%clk 0:01:58]}
44... Ra1 {[%clk 0:00:38.3]} 45. b5+ {[%clk 0:01:52]} 45... Kd5 {[%clk
0:00:36.2]} 46. Rxb7 {[%clk 0:01:50.6]} 46... Rxa4 {[%clk 0:00:36.1]} 47. Rg7
{[%clk 0:01:51.2]} 47... Ra3+ {[%clk 0:00:35.9]} 48. Ke2 {[%clk 0:01:51.5]}
48... Rb3 {[%clk 0:00:33.5]} 49. Rxa7 {[%clk 0:01:50.8]} 49... Rxb5 {[%clk
0:00:33.1]} 50. Rg7 {[%clk 0:01:51.4]} 50... Rb2+ {[%clk 0:00:32.6]} 51. Kf3
{[%clk 0:01:51.3]} 51... Rb3+ {[%clk 0:00:32.9]} 52. Kg2 {[%clk 0:01:51.7]}
52... Ke4 {[%clk 0:00:31.5]} 53. Rxg6 {[%clk 0:01:52]} 53... Rd3 {[%clk
0:00:31.2]} 54. Re6+ {[%clk 0:01:43]} 54... Kxf4 {[%clk 0:00:30.4]} 55. Re8
{[%clk 0:01:43.2]} 55... Rd1 {[%clk 0:00:29.2]} 56. Rh8 {[%clk 0:01:42.6]} 56...
d5 {[%clk 0:00:27.8]} 57. Rh4+ {[%clk 0:01:42.6]} 57... Ke5 {[%clk 0:00:27.6]}
58. Kf3 {[%clk 0:01:41.9]} 58... Re1 {[%clk 0:00:25.3]} 59. Rh8 {[%clk
0:01:41.5]} 59... Re4 {[%clk 0:00:25.1]} 60. Rd8 {[%clk 0:01:40.9]} 60... d4
{[%clk 0:00:24.9]} 61. Kg3 {[%clk 0:01:40.8]} 61... Rg4+ {[%clk 0:00:19.4]} 62.
Kf3 {[%clk 0:01:40.9]} 62... Rg6 {[%clk 0:00:19.5]} 63. Ke2 {[%clk 0:01:39.9]}
63... Re6 {[%clk 0:00:18.4]} 64. Rh8 {[%clk 0:01:39.8]} 64... Ke4 {[%clk
0:00:18.3]} 65. Rh4+ {[%clk 0:01:39]} 65... f4 {[%clk 0:00:18.5]} 66. Rh5 {[%clk
0:01:39.1]} 66... d3+ {[%clk 0:00:13.1]} 67. Kd2 {[%clk 0:01:39.4]} 67... Rd6
{[%clk 0:00:13.5]} 68. Rh3 {[%clk 0:01:39.2]} 68... Rd5 {[%clk 0:00:12.4]} 69.
Kd1 {[%clk 0:01:38.1]} 69... Kd4 {[%clk 0:00:11.5]} 70. Kd2 {[%clk 0:01:38]}
70... Kc4 {[%clk 0:00:11.8]} 71. Rf3 {[%clk 0:01:38.1]} 71... Rd4 {[%clk
0:00:12.2]} 72. Rh3 {[%clk 0:01:38.6]} 72... Rd8 {[%clk 0:00:10.2]} 73. Rh4
{[%clk 0:01:38.6]} 73... Rf8 {[%clk 0:00:09.4]} 74. Rh6 {[%clk 0:01:38.3]} 74...
Kd4 {[%clk 0:00:09.4]} 75. Rd6+ {[%clk 0:01:37.7]} 75... Ke4 {[%clk 0:00:09.8]}
76. Rxd3 {[%clk 0:01:38.6]} 76... Ra8 {[%clk 0:00:10.2]} 77. f3+ {[%clk
0:01:37.6]} 77... Ke5 {[%clk 0:00:10.6]} 78. Rb3 {[%clk 0:01:37.8]} 78... Ra2+
{[%clk 0:00:11.1]} 79. Kd3 {[%clk 0:01:38.3]} 79... Rf2 {[%clk 0:00:11.1]} 80.
Rb5+ {[%clk 0:01:38.5]} 80... Kf6 {[%clk 0:00:11.4]} 81. Ke4 {[%clk 0:01:39.4]}
81... Ra2 {[%clk 0:00:10.7]} 82. Kxf4 {[%clk 0:01:39.7]} 82... Ra4+ {[%clk
0:00:11.2]} 83. Kg3 {[%clk 0:01:40.1]} 83... Rc4 {[%clk 0:00:11.4]} 84. Rb1
{[%clk 0:01:39.7]} 84... Kf5 {[%clk 0:00:11.3]} 85. Rb5+ {[%clk 0:01:39.7]}
85... Kf6 {[%clk 0:00:11]} 86. Kf2 {[%clk 0:01:39.6]} 86... Kg6 {[%clk
0:00:10.9]} 87. Ke3 {[%clk 0:01:39.2]} 87... Rc6 {[%clk 0:00:11.4]} 88. Re5
{[%clk 0:01:38.3]} 88... Kf6 {[%clk 0:00:11.2]} 89. Re4 {[%clk 0:01:38.3]} 89...
Rc3+ {[%clk 0:00:10.9]} 90. Kf4 {[%clk 0:01:39.2]} 90... Rc6 {[%clk 0:00:11.8]}
91. Kg4 {[%clk 0:01:39.2]} 91... Kg6 {[%clk 0:00:11.9]} 92. f4 {[%clk
0:01:39.4]} 92... Kf6 {[%clk 0:00:12.3]} 93. Ra4 {[%clk 0:01:39.1]} 93... Rd6
{[%clk 0:00:11.9]} 94. Ra5 {[%clk 0:01:39.4]} 94... Kg6 {[%clk 0:00:10.5]} 95.
Rg5+ {[%clk 0:01:38.9]} 95... Kf6 {[%clk 0:00:08.8]} 96. Rh5 {[%clk 0:01:39]}
96... Kg6 {[%clk 0:00:04.6]} 97. f5+ {[%clk 0:01:38.8]} 97... Kg7 {[%clk
0:00:05]} 98. Kg5 {[%clk 0:01:36.8]} 98... Rd1 {[%clk 0:00:03.3]} 99. f6+ {[%clk
0:01:37]} 99... Kg8 {[%clk 0:00:02.5]} 100. Kf5 {[%clk 0:01:27.3]} 100... Rg1
{[%clk 0:00:03.4]} 101. Rh4 {[%clk 0:01:23.1]} 101... Rf1+ {[%clk 0:00:03.6]}
102. Ke6 {[%clk 0:01:23.3]} 102... Re1+ {[%clk 0:00:03.9]} 103. Kd5 {[%clk
0:01:23.6]} 103... Rd1+ {[%clk 0:00:04.2]} 104. Ke5 {[%clk 0:01:23.2]} 104...
Re1+ {[%clk 0:00:04.4]} 105. Kf5 {[%clk 0:01:23.2]} 105... Rf1+ {[%clk
0:00:04.6]} 106. Rf4 {[%clk 0:01:22.2]} 106... Rxf4+ {[%clk 0:00:04.3]} 107.
Kxf4 {[%clk 0:01:23.1]} 107... Kf7 {[%clk 0:00:04.4]} 108. Kf5 {[%clk 0:01:24]}
108... Kf8 {[%clk 0:00:04.7]} 109. Kg6 {[%clk 0:01:24.9]} 109... Kg8 {[%clk
0:00:04.7]} 110. Kg5 {[%clk 0:01:25.8]} 110... Kf7 {[%clk 0:00:04.4]} 111. Kf5
{[%clk 0:01:26.7]} 111... Kf8 {[%clk 0:00:04.5]} 112. Ke6 {[%clk 0:01:27.6]}
112... Ke8 {[%clk 0:00:04.6]} 113. Kd6 {[%clk 0:01:27.8]} 113... Kf7 {[%clk
0:00:05.5]} 114. Ke5 {[%clk 0:01:28.7]} 114... Kf8 {[%clk 0:00:05.8]} 115. Kd5
{[%clk 0:01:29.1]} 115... Kf7 {[%clk 0:00:05.8]} 116. Ke5 {[%clk 0:01:29]}
116... Kf8 {[%clk 0:00:06.2]} 117. Kf5 {[%clk 0:01:29.9]} 117... Kf7 {[%clk
0:00:06.5]} 118. Kg5 {[%clk 0:01:30.8]} 118... Kf8 {[%clk 0:00:06.8]} 119. Kg6
{[%clk 0:01:31.2]} 119... Kg8 {[%clk 0:00:06.1]} 120. Kf5 {[%clk 0:01:31.3]}
120... Kf7 {[%clk 0:00:06.2]} 121. Kg5 {[%clk 0:01:31.6]} 121... Kf8 {[%clk
0:00:05.3]} 122. Kg6 {[%clk 0:01:32.5]} 1/2-1/2

[Event "*** SCC Grand Prix: Titled Tuesday Blitz"]
[Site "Chess.com"]
[Date "2020.09.08"]
[Round "2"]
[White "2nd_life"]
[Black "AJSC02"]
[Result "1-0"]
[WhiteElo "2531"]
[BlackElo "2298"]
[TimeControl "180+1"]
[EndTime "10:12:23 PDT"]
[Termination "2nd_life won by checkmate"]

1. e4 {[%clk 0:03:00.9]} 1... c5 {[%clk 0:03:00.1]} 2. Nf3 {[%clk 0:02:59.5]}
2... Nc6 {[%clk 0:03:00.4]} 3. Bb5 {[%clk 0:02:59.1]} 3... Nf6 {[%clk
0:02:59.9]} 4. Nc3 {[%clk 0:02:55.7]} 4... Qc7 {[%clk 0:02:59.2]} 5. O-O {[%clk
0:02:54.2]} 5... Nd4 {[%clk 0:02:54.7]} 6. Re1 {[%clk 0:02:49.6]} 6... Nxb5
{[%clk 0:02:51.2]} 7. Nxb5 {[%clk 0:02:49]} 7... Qc6 {[%clk 0:02:51.3]} 8. c4
{[%clk 0:02:40.7]} 8... Nxe4 {[%clk 0:02:39.3]} 9. Ne5 {[%clk 0:02:32.7]} 9...
Nxf2 {[%clk 0:02:23.8]} 10. Nxc6 {[%clk 0:02:28.2]} 10... Nxd1 {[%clk
0:02:23.2]} 11. Nc7# {[%clk 0:02:28.3]} 1-0

[Event "*** SCC Grand Prix: Titled Tuesday Blitz"]
[Site "Chess.com"]
[Date "2020.09.08"]
[Round "2"]
[White "shrek4life02"]
[Black "Zemerovv"]
[Result "1-0"]
[WhiteElo "2526"]
[BlackElo "2288"]
[TimeControl "180+1"]
[EndTime "10:12:49 PDT"]
[Termination "shrek4life02 won by resignation"]

1. d4 {[%clk 0:03:00.9]} 1... g6 {[%clk 0:02:58.7]} 2. Nc3 {[%clk 0:03:00.9]}
2... Bg7 {[%clk 0:02:59.4]} 3. Bf4 {[%clk 0:03:01.2]} 3... d6 {[%clk 0:02:59.6]}
4. Qd2 {[%clk 0:03:01]} 4... Nd7 {[%clk 0:02:59.5]} 5. Nf3 {[%clk 0:03:01.1]}
5... e6 {[%clk 0:02:59.5]} 6. O-O-O {[%clk 0:03:00.6]} 6... h6 {[%clk
0:02:59.5]} 7. Kb1 {[%clk 0:03:00.9]} 7... Ne7 {[%clk 0:02:59.4]} 8. h4 {[%clk
0:03:01.3]} 8... a6 {[%clk 0:02:58.8]} 9. g4 {[%clk 0:03:01.5]} 9... b5 {[%clk
0:02:58.3]} 10. h5 {[%clk 0:03:01.8]} 10... g5 {[%clk 0:02:57.2]} 11. Nxg5
{[%clk 0:03:01.7]} 11... hxg5 {[%clk 0:02:56.2]} 12. Bxg5 {[%clk 0:03:01.6]}
12... f6 {[%clk 0:02:55]} 13. Bf4 {[%clk 0:02:58.7]} 13... e5 {[%clk 0:02:51.8]}
14. dxe5 {[%clk 0:02:56.3]} 14... Nxe5 {[%clk 0:02:49.4]} 15. Bg2 {[%clk
0:02:52.3]} 15... Rb8 {[%clk 0:02:47.6]} 16. Ne4 {[%clk 0:02:48.6]} 16... Bb7
{[%clk 0:02:45.4]} 17. h6 {[%clk 0:02:47.3]} 17... Bf8 {[%clk 0:02:29.8]} 18.
Nxf6+ {[%clk 0:02:46.7]} 18... Kf7 {[%clk 0:02:29.8]} 19. Bxb7 {[%clk
0:02:44.7]} 19... Kxf6 {[%clk 0:02:26.7]} 20. Bd5 {[%clk 0:02:40.9]} 20... Nxd5
{[%clk 0:02:25.4]} 21. Bg5+ {[%clk 0:02:41.2]} 1-0